Cogmind - Beta 15 @@@ ROGUE MODE // 2025.06.13 @ 17:17:05 Player: Chair Result: Destroyed by Y-45 Defender with Beam Rifle Performance ------------- Evolutions (1) 500 Regions Visited (3) 600 Robots Destroyed (0) 0 Value Destroyed (0) 0 Prototype IDs (0) 0 Alien Tech Used (0) 0 Bonus (200) 200 TOTAL SCORE: 1300 Bonus ------- Pacifist 200 Cogmind --------- Core Integrity 0/400 Matter 300/300 Energy 98/100 System Corruption 0% Temperature Cool (9) Movement Core (50) Location -9/Storage Parts ------- > --- POWER (1) -------- (None) > --- PROPULSION (3) --- (None) > --- UTILITY (3) ------ (None) > --- WEAPON (2) ------- (None) > --- INVENTORY (5) ---- High-capacity Matter Pod (36) Structural Scanner Propulsion Shielding Peak State ------------ > --- POWER ------------ (None) > --- PROPULSION ------- (None) > --- UTILITY ---------- Structural Scanner > --- WEAPON ----------- Small Laser > --- INVENTORY -------- High-capacity Matter Pod Propulsion Shielding [Rating: 2] Favorites ----------- Power None Propulsion None Utility Structural Scanner Device Structural Scanner Weapon Small Laser Energy Gun Small Laser Build | -11 -10 -9 -9 ------- Run | Yrd Mat Mat Sto Slots Evolved 2 | . . 2 . Power . | . . . . Propulsion 1 | . . 1 . Utility 1 | . . 1 . Weapon . | . . . . Parts Attached 2 | 1 . 1 . Power . | . . . . Engine . | . . . . Core . | . . . . Reactor . | . . . . Propulsion . | . . . . Treads . | . . . . Leg . | . . . . Wheel . | . . . . Hover . | . . . . Flight . | . . . . Utility 1 | . . 1 . Device 1 | . . 1 . Storage . | . . . . Processor . | . . . . Hackware . | . . . . Protection . | . . . . Artifact . | . . . . Weapon 1 | 1 . . . Energy Gun 1 | 1 . . . Energy Cannon . | . . . . Ballistic Gun . | . . . . Ballistic Cannon . | . . . . Launcher . | . . . . Special Weapon . | . . . . Impact Weapon . | . . . . Slashing Weapon . | . . . . Piercing Weapon . | . . . . Special Melee Weapon . | . . . . Unidentified Prototypes . | . . . . Parts Lost 1 | . . 1 . Power . | . . . . Propulsion . | . . . . Utility . | . . . . Weapon 1 | . . 1 . Highest Loss Streak 1 | . . 1 . To Critical Strikes . | . . . . Average Backups 2 | . 1 2 3 Power . | . . . . Propulsion . | . . . . Utility 2 | . 1 2 3 Weapon . | . . . . Tool/Special . | . . . . Unused Backups 2 | . . . 2 Power . | . . . . Propulsion . | . . . . Utility 2 | . . . 2 Weapon . | . . . . Tool/Special . | . . . . Average Slot Usage (%) 10 | . 14 13 . Device 1 | . . 3 . Energy Gun 9 | . 14 9 . Peak Build Rating 2 | 1 1 2 . Average Rating . | . 1 1 . On Entrance . | . 1 1 . Naked Turns 48 | . . 2 46 Heaviest Build 2 | 1 1 2 . Greatest Support 3 | 3 3 3 3 Greatest Overweight (x) . | . . . . Average Overweight (x) . | . . . . Largest Inventory Capacity 5 | 5 5 5 5 Average Capacity 5 | 5 5 5 5 Most Carried 3 | . 3 3 3 Average Carried 2 | . 1 2 3 Final Capacity 5 | 5 5 5 5 Final Carried 3 | . 3 3 3 Class Distribution -------------------- 100% | Mutant Dominant Class ---------------- Mutant | -10/Materials Mutant | -9/Materials Mutant | -9/Storage Resources | -11 -10 -9 -9 ----------- Run | Yrd Mat Mat Sto Matter Collected 236 | 67 143 . 26 Remotely . | . . . . Salvage Created . | . . . . Parts . | . . . . Haulers Intercepted . | . . . . Recyclers Shooed . | . . . . Parts Field Recycled . | . . . . Retrieved Matter . | . . . . Parts Self-Destructed . | . . . . Prevented . | . . . . Kills | -11 -10 -9 -9 ------- Run | Yrd Mat Mat Sto Combat Hostiles Destroyed . | . . . . Classes Destroyed . | . . . . Best Kill Streak . | . . . . Combat Bots Only . | . . . . Max Kills in Single Turn . | . . . . Gunslinging . | . . . . Exploded . | . . . . Melee . | . . . . Uniques/NPCs Destroyed . | . . . . Combat | -11 -10 -9 -9 -------- Run | Yrd Mat Mat Sto Hostile Shots Fired 64 | . 8 30 26 Missed 25 | . 6 8 11 Hits 39 | . 2 22 15 Projectile 39 | . 2 22 15 Critical Strikes 1 | . . 1 . Damage Taken 493 | . 22 268 203 Core 423 | . 12 208 203 Absorbed by Shields . | . . . . Core Remaining (%) 97 | 100 95 . . Volleys Fired . | . . . . Largest . | . . . . Hottest . | . . . . Shots Fired . | . . . . Gun . | . . . . Cannon . | . . . . Launcher . | . . . . Special . | . . . . Kinetic . | . . . . Thermal . | . . . . Explosive . | . . . . Electromagnetic . | . . . . Robot Hit Streak . | . . . . Robot Miss Streak . | . . . . Penetration Max . | . . . . Secondary Targets . | . . . . Shots Hit Robots . | . . . . Core Hits 2 | . . 2 . Critical Kills . | . . . . Critical Parts Destroyed . | . . . . Critical Strikes . | . . . . Melee Attacks . | . . . . Impact . | . . . . Slashing . | . . . . Piercing . | . . . . Sneak Attacks . | . . . . Combat Hostiles . | . . . . Follow-up Attacks . | . . . . Damage Inflicted 19 | . . 15 4 Guns . | . . . . Cannons . | . . . . Explosions . | . . . . Melee . | . . . . Ramming 19 | . . 15 4 Kinetic . | . . . . Thermal . | . . . . Explosive . | . . . . Electromagnetic . | . . . . Impact . | . . . . Slashing . | . . . . Piercing . | . . . . Highest Corruption . | . . . . Average Corruption . | . . . . Corruption Purged . | . . . . Corruption Blocked . | . . . . Overload Shots . | . . . . Overflow Damage . | . . . . Projectiles . | . . . . Explosions . | . . . . Melee . | . . . . Knockbacks . | . . . . Impact . | . . . . Kinetic . | . . . . Secondary . | . . . . Self-Inflicted Damage 9 | . . 7 2 Shots . | . . . . Rammed 4 | . . 3 1 Targets Rammed 4 | . . 3 1 Kicked . | . . . . Crushed . | . . . . Highest Temperature . | . . . . Average Temperature . | . . . . Received Heat Transfer 168 | . 12 81 75 Siege Activations . | . . . . Martial Activations . | . . . . Shielding Activations . | . . . . Robots Disrupted . | . . . . Combat Hostiles . | . . . . Robots Corrupted . | . . . . Combat Hostiles . | . . . . Parts Fried . | . . . . Impact Corruptions . | . . . . Robots Melted . | . . . . Combat Hostiles . | . . . . Parts Melted . | . . . . Heat Transferred . | . . . . Parts Sabotaged . | . . . . Parts Stolen . | . . . . Parts Stripped . | . . . . Power Chain Reactions . | . . . . Alert | -11 -10 -9 -9 ------- Run | Yrd Mat Mat Sto Maximum Alert Level . | . . . . Low Security (%) 100 | 100 100 100 100 Level 1 . | . . . . Level 2 . | . . . . Level 3 . | . . . . Level 4 . | . . . . Level 5 . | . . . . High Security . | . . . . Max Security . | . . . . Peak Influence 30 | . 15 30 10 Initial 10 | . . 5 10 Average 4 | . 2 7 4 Influence Increases 91 | . 31 45 15 Successful Hack 16 | . 16 . . Partial Spotted 15 | . . . 15 Lose Combat Pursuer 60 | . 15 45 . Influence Decreases 86 | . 16 35 35 Entered New Map 25 | . . 10 15 Time Decay 51 | . 16 15 20 Lost Part 10 | . . 10 . Squads Dispatched 6 | . 2 2 2 Investigation 5 | . 2 2 1 Extermination . | . . . . Reinforcement 1 | . . . 1 Assault . | . . . . Garrison . | . . . . Intercept . | . . . . Searches Triggered . | . . . . Construction Impeded . | . . . . Haulers Reinforced . | . . . . Active Scanning Responses . | . . . . Cargo Convoy Interrupts . | . . . . Stealth | -11 -10 -9 -9 --------- Run | Yrd Mat Mat Sto Distress Signals 3 | . 1 1 1 Communications Jammed . | . . . . Distress Signals . | . . . . Times Spotted 31 | . 3 14 14 Peak Tracking Total 18 | . 4 12 18 Tactical Retreats 3 | . 1 2 . Traps | -11 -10 -9 -9 ------- Run | Yrd Mat Mat Sto Traps Triggered 2 | . . 1 1 Indirectly . | . . . . Trap Hack Attempts . | . . . . Triggered . | . . . . Disarmed . | . . . . Reprogrammed . | . . . . Reused . | . . . . Traps Extracted . | . . . . Installed . | . . . . Triggered . | . . . . Machines | -11 -10 -9 -9 ---------- Run | Yrd Mat Mat Sto Machines Disabled . | . . . . Max in Single Turn . | . . . . Machines Repaired . | . . . . Machines Dismantled . | . . . . Machines Sabotaged . | . . . . Overloaded Fab Kills . | . . . . Hacking | -11 -10 -9 -9 --------- Run | Yrd Mat Mat Sto Machines Accessed 5 | . 3 2 . Terminals 5 | . 3 2 . Fabricators . | . . . . Repair Stations . | . . . . Recycling Units . | . . . . Scanalyzers . | . . . . Garrison Access . | . . . . Total Hacks 17 | . 11 6 . Successful 4 | . 3 1 . Failed 12 | . 7 5 . Catastrophic 2 | . 1 1 . Database Lockouts 1 | . 1 . . Manual 16 | . 10 6 . Terminals 17 | . 11 6 . Fabricators . | . . . . Repair Stations . | . . . . Recycling Units . | . . . . Scanalyzers . | . . . . Garrison Access . | . . . . Terminal Hacks 2 | . 2 . . Part Schematic 1 | . 1 . . Hauler Manifests 1 | . 1 . . Fabricator Hacks . | . . . . Repair Station Hacks . | . . . . Recycling Unit Hacks . | . . . . Scanalyzer . | . . . . Garrison Access Hacks . | . . . . Unauthorized Hacks 2 | . 1 1 . Terminals 2 | . 1 1 . Botnet 2 | . 1 1 . Fabricators . | . . . . Repair Stations . | . . . . Recycling Units . | . . . . Scanalyzers . | . . . . Garrison Access . | . . . . Data Cores Recovered . | . . . . Used . | . . . . Hacking Detections 5 | . 3 2 . Full Trace Events 5 | . 3 2 . Feedback Events . | . . . . Feedback Blocked . | . . . . Robot Schematics Acquired . | . . . . Robots Built . | . . . . Authchips . | . . . . Time . | . . . . Total Robot Build Rating . | . . . . Part Schematics Acquired 1 | . 1 . . Parts Built . | . . . . Authchips . | . . . . Time . | . . . . Total Part Build Rating . | . . . . Parts Repaired . | . . . . Time . | . . . . Parts Recycled . | . . . . Recycled Matter . | . . . . Retrieved Matter . | . . . . Retrieved Components . | . . . . Parts Scanalyzed . | . . . . Part Schematics Acquired . | . . . . Parts Damaged . | . . . . Bothacking | -11 -10 -9 -9 ------------ Run | Yrd Mat Mat Sto Used RIF Installer . | . . . . Robots Hacked . | . . . . Non-combat . | . . . . Combat . | . . . . Robot Hacks Applied . | . . . . Relay Couplers Released . | . . . . Fabnet Peak Effective % . | . . . . Robots Rewired . | . . . . Allies Hacked . | . . . . Hacks Repelled . | . . . . Allies | -11 -10 -9 -9 -------- Run | Yrd Mat Mat Sto Total Allies . | . . . . Largest Group . | . . . . Highest-Rated Group . | . . . . Highest-Rated Ally . | . . . . Total Orders . | . . . . Ally Attacks . | . . . . Total Damage . | . . . . Kills . | . . . . Allies Corrupted . | . . . . Allies Melted . | . . . . Intel | -11 -10 -9 -9 ------- Run | Yrd Mat Mat Sto Active Infowar (turns) 27 | . . 27 . Structural 27 | . . 27 . Robot Analysis Total . | . . . . Derelict Logs Recovered . | . . . . Drone Launches . | . . . . Drone Recoveries . | . . . . Exploration | -11 -10 -9 -9 ------------- Run | Yrd Mat Mat Sto Turns Passed 206 | 12 69 79 46 Spaces Moved 392 | 20 132 150 90 Core 392 | 20 132 150 90 Treads . | . . . . Legs . | . . . . Wheels . | . . . . Hover . | . . . . Flight . | . . . . Fastest Speed 50 | 50 50 50 50 Average Speed 50 | 50 50 50 50 Slowest Speed 50 | 50 50 50 50 Overloaded Moves . | . . . . Propulsion Burnouts . | . . . . Robots Hopped . | . . . . Potential Cave-ins . | . . . . Cave-ins Triggered . | . . . . Exploration Rate (%) 23 | 4 38 26 24 Regions Visited 3 Branch Regions 1 Pre-discovered Areas . | . . . . Known Exits Taken . | . . . . Unknown Exits Taken 3 | 1 1 1 . Scrap Searched . | . . . . Spaces Dug . | . . . . Terrain Destroyed . | . . . . Melee . | . . . . Projectile . | . . . . AOE . | . . . . Terrain Rammed . | . . . . Walls Destroyed . | . . . . Machines Disabled . | . . . . Actions | -11 -10 -9 -9 --------- Run | Yrd Mat Mat Sto Total 399 | 20 134 154 91 Wait . | . . . . Move 390 | 19 131 150 90 Hop . | . . . . Pick Up 3 | . 3 . . Fast Attach 1 | 1 . . . Attach 1 | . . 1 . Detach 1 | . . 1 . Swap . | . . . . Drop . | . . . . Fire . | . . . . Melee . | . . . . Ram 3 | . . 2 1 Kick . | . . . . Crush . | . . . . Escape Stasis . | . . . . Rewire . | . . . . Trap . | . . . . Miscellaneous . | . . . . Route ------- -11/Scrapyard -10/Materials (discovered 2 exits: *Mat / [*Min]) -9/Materials (discovered 3 exits: [*Min x2] / [*Sto]) -9/Storage History --------- Turn | Location | Event 5 | -11/Scrapyard | Discovered new exit (range 14) 13 | -11/Scrapyard | Entered Materials 40 | -10/Materials | Discovered new exit (range 14) 66 | -10/Materials | Discovered new exit (range 16) 69 | -10/Materials | Central database locked down 82 | -10/Materials | Entered another Materials area 82 | -9/Materials | Evolved 2 slots: Propulsion x1, Utility x1 108 | -9/Materials | Discovered new exit (range 9) 132 | -9/Materials | Discovered new exit (range 14) 154 | -9/Materials | Discovered new exit (range 15) 161 | -9/Materials | Entered Storage 162 | -9/Storage | Core integrity fell below 50% 203 | -9/Storage | Core integrity fell below 20% 207 | -9/Storage | Destroyed by Y-45 Defender with Beam Rifle Last Messages --------------- 00151_ Slammed into R-06 Scavenger. 00153_ Destabilizing: Core damaged (-4). 00154_ EXIT=FOUND 00158_ K-01 Serf collects debris. 00159_ Sml. Laser destroyed. 00161_ Slammed into Y-45 Defender. LOCATION=UNKNOWN GOAL=ESCAPE 00174_ K-01 Serf cleans the Component Storage. 00174_ Triggered Alarm Trap. 00174_ An alarm sounds. 00174_ ALERT: Alarm triggered, dispatching investigation squad. 00180_ U-05 Engineer lays Concrete. 00200_ O-16 Technician: "IFF HANDSHAKE FAILED. SECURING TERMINAL." 00200_ W-16 Scout sends out distress signal. 00200_ K-01 Serf destroyed. 00202_ Acquired 26 matter. 00203_ ALERT: Hostiles spotted, dispatching reinforcements to Terminal S009. 00204_ Slammed into O-16 Technician. Map ----- +----------------------------------------------------+ | ?????????????????????????????????????????????????? | | ?????????????????????????????????????????????????? | | ?????????????????????????????????????????????????? | | ?????????????????????????????????????????????????? | | ?????????????????????????????????????????????????? | | ?????????????????????????????????????????????????? | | ?????????????????????????????????????????????????? | | ?????????????????????????????????????????????????? | | ?????????????????????????????????????????????????? | | ?????????????????????????????????????????????????? | | ????????????????????????? ???????????????????????? | | ????????????????????????? ???????????????????????? | | ????????????????????????? ????????????????????#### | | ????????????????????????? ?????##########?????# | | ????????????????????????? ?????# #?????# | | ????????????????????????? #????# """"" ####### | | ???????????????????????## ##???# """"" # # | | ???????????????????????# #???# """"" # # | | ???????????????????????+ #???# + + | | ???????????????????????# #???# """"" # # | | ???????????????????????# #???# """"" # # | | ???????????????????????# #???# """"" ## ## | | ???????????????????????#a #???# ## ## | | ???????????????????????# #???########### ## | | ???????????????????????# #?????????????# ## | | ???????????## ????????# @ #?????????????# ## | | ???????????# ####### #?????????????# ##### | | ???????????# Y #?????????????# #???? | | ???????????# #?????????????# #???? | | ???????????# g #?????????????# #???? | | ???????????# #######g #????########## #??"" | | ???????????####????????#ss #????# # # """ | | ?????????????# #######?#r #????# # + """ | | ????????????? #g #????# """ # # | | ???????????????""" " # * #????# "?"""" # #??"" | | ???????????????""" T s! #????# "????" + #???? | | ???????????????""" " #o ###### "????" # #???? | | ????????????? # + "????" # #???? | | ?????????????#####+##+## ###### "?" #^ #???? | | ?????????? #????# # #???? | | ???????????????#?########+##????########## #???? | | ???????????????????????? ??????????????#####???? | | ????????????????????????"" ?????????????????????? | | ???????????????????????""" ????????????????????? | | ???????????????????????""" ????????????????????? | | ?????????????????????? *= ???????????????????? | | ?????????????????????? *= T??????????????????? | | ??????????????????????? ""?????????????????? | | ????????????????????????Y" ##?????????????????? | | ?????????????????????????? ??????????????????? | +----------------------------------------------------+ Best States ------------- Heat Dissipation 28 Energy Generation 5 Energy Capacity 100 Matter Stores 300 Matter Capacity 300 Sight Range 16 Terrain Scan Density 10 Evasion (%) 50 Item Schematics ----------------- Flight Unit | -10/Materials | Hacked Robot Schematics ------------------ None Fabricated ------------ Nothing Repaired ---------- Nothing Alien Tech Used ----------------- None Achievements -------------- None Challenges ------------ None Game ------ Seed MiningRestorationTether Manual? 0 Play Time 00:04:16 Cumulative 247.0 hours Start 2025.06.13 @ 17:13:28 End 2025.06.13 @ 17:17:05 Sessions 1 Manual Loads 0 Difficulty Rogue Special Mode None Game No. 185 Rogue 185 Adventurer 0 Explorer 0 Win Type - Total 14 Types 14/0/0/0/0/0/0/0/0/0 Lore% 72 Gallery% 70 Achievement% 64 Wizard Run 0 Options --------- Layout 0 ASCII 0 Keyboard 1 Movement Numpad Keybinds 0 Fullscreen 2 Font 36/Smallcaps Map View 76x50 Zoom Use 0% Tactical HUD 1 Map Filters NONE Filters NONE Steam 1 RUN: 846b4105-fcd1-463e-a6ed-e397cd1e23d2